fUST/lending_fUST_20250628
["ID","MTS","AMOUNT","RATE_DAILY","PERIOD"]
[368240673,1751070452028,-460.0,0.00019726,2]
[368240674,1751070452050,-249.22038503,0.00019726,2]
[368240675,1751070452071,-460.0,0.00019726,2]
[368240676,1751070452091,-460.0,0.00019726,2]
[368240677,1751070452112,-460.0,0.00019726,2]
[368240678,1751070452134,-468.43576269,0.00019726,2]
[368240679,1751070452155,-500.0,0.00019726,2]
[368240680,1751070452175,-499.42543879,0.00019726,2]
[368240681,1751070452196,-372.97309805,0.00019726,2]
[368240682,1751070452216,-460.0,0.00019726,2]
[368240683,1751070452237,-460.0,0.00019726,2]
[368240684,1751070452257,-460.0,0.00019726,2]
[368240685,1751070452278,-460.0,0.00019726,2]
[368240686,1751070452298,-460.0,0.00019726,2]
[368240687,1751070452319,-460.0,0.00019726,2]
[368240688,1751070452341,-460.0,0.00019726,2]
[368240689,1751070452362,-460.0,0.00019726,2]
[368240690,1751070452383,-460.0,0.00019726,2]
[368240691,1751070452404,-460.0,0.00019726,2]
[368240692,1751070452425,-445.31322624,0.00019726,2]
[368240693,1751070452446,-460.0,0.00019726,2]
[368240694,1751070452467,-489.39855889,0.00019726,2]
[368240695,1751070452487,-460.0,0.00019726,2]
[368240696,1751070452508,-460.0,0.00019726,2]
[368240697,1751070452530,-460.0,0.00019726,2]
[368240698,1751070452551,-460.0,0.00019726,2]
[368240699,1751070452570,-335.51614168,0.00019726,2]
[368240700,1751070452590,-464.67565507,0.00019726,2]
[368240701,1751070452610,-460.0,0.00019726,2]
[368240702,1751070452630,-460.0,0.00019726,2]
[368240703,1751070452650,-460.0,0.00019726,2]
[368240704,1751070452670,-460.0,0.00019726,2]
[368240705,1751070452690,-460.0,0.00019726,2]
[368240706,1751070452714,-460.0,0.00019726,2]
[368240707,1751070452736,-460.0,0.00019726,2]
[368240708,1751070452759,-460.0,0.00019726,2]
[368240709,1751070452780,-460.0,0.00019726,2]
[368240710,1751070452802,-460.0,0.00019726,2]
[368240711,1751070452823,-460.0,0.00019726,2]
[368240712,1751070452844,-460.0,0.00019726,2]
[368240713,1751070452866,-460.0,0.00019726,2]
[368240714,1751070452886,-460.0,0.00019726,2]
[368240715,1751070452907,-460.0,0.00019726,2]
[368240716,1751070452928,-460.0,0.00019726,2]
[368240717,1751070452949,-460.0,0.00019726,2]
[368240718,1751070452971,-460.0,0.00019726,2]
[368240719,1751070453000,-460.0,0.00019726,2]
[368240720,1751070453023,-460.0,0.00019726,2]
[368240721,1751070453046,-460.0,0.00019726,2]
[368240722,1751070453068,-460.0,0.00019726,2]
[368240723,1751070453091,-500.0,0.00019726,2]
[368240724,1751070453323,-533.25,0.00019726,2]
[368240725,1751070453349,-460.0,0.00019726,2]
[368240726,1751070453374,-460.0,0.00019726,2]
[368240727,1751070453402,-460.0,0.00019726,2]
[368240728,1751070453427,-460.0,0.00019726,2]
[368240729,1751070453453,-695.22,0.00019726,2]
[368240730,1751070453478,-460.24266257,0.00019726,2]
[368240731,1751070453502,-460.0,0.00019726,2]
[368240732,1751070453527,-460.0,0.00019726,2]
[368240733,1751070453552,-472.470462,0.00019726,2]
[368240734,1751070453577,-460.0,0.00019726,2]
[368240735,1751070453600,-460.0,0.00019726,2]
[368240736,1751070453625,-460.0,0.00019726,2]
[368240737,1751070453651,-460.0,0.00019726,2]
[368240738,1751070453675,-460.0,0.00019726,2]
[368240739,1751070453699,-460.0,0.00019726,2]
[368240740,1751070453722,-460.0,0.00019726,2]
[368240741,1751070453745,-460.0,0.00019726,2]
[368240742,1751070453767,-460.0,0.00019726,2]
[368240743,1751070453790,-460.0,0.00019726,2]
[368240744,1751070453813,-460.0,0.00019726,2]
[368240745,1751070453836,-460.0,0.00019726,2]
[368240746,1751070453859,-460.0,0.00019726,2]
[368240747,1751070453884,-460.0,0.00019726,2]
[368240748,1751070453906,-460.0,0.00019726,2]
[368240749,1751070453928,-460.0,0.00019726,2]
[368240750,1751070453950,-1000.0,0.00019726,2]
[368240751,1751070453971,-460.0,0.00019726,2]
[368240752,1751070453995,-527.75,0.00019726,2]
[368240753,1751070454017,-460.0,0.00019726,2]
[368240754,1751070454040,-459.75808184,0.00019726,2]
[368240755,1751070454063,-460.0,0.00019726,2]
[368240756,1751070454086,-366.24758946,0.00019726,2]
[368240757,1751070454108,-460.0,0.00019726,2]
[368240758,1751070454131,-460.0,0.00019726,2]
[368240759,1751070454154,-460.0,0.00019726,2]
[368240760,1751070454179,-460.0,0.00019726,2]
[368240761,1751070454202,-1275.8,0.00019726,2]
[368240762,1751070454224,-460.0,0.00019726,2]
[368240763,1751070454247,-460.0,0.00019726,2]
[368240764,1751070454269,-460.0,0.00019726,2]
[368240765,1751070454292,-460.0,0.00019726,2]
[368240766,1751070454313,-460.0,0.00019726,2]
[368240767,1751070454336,-460.0,0.00019726,2]
[368240768,1751070454362,-460.0,0.00019726,2]
[368240769,1751070454386,-460.0,0.00019726,2]
[368240770,1751070454412,-1647.99,0.00019726,2]
[368240771,1751070454434,-460.0,0.00019726,2]
[368240772,1751070454457,-657.19,0.00019726,2]
[368240773,1751070454478,-184.71535336,0.00019726,2]
[368240774,1751070454502,-3962.96,0.00019726,2]
[368240775,1751070454526,-3007.94,0.00019726,2]
[368240776,1751070454549,-460.0,0.00019726,2]
[368240777,1751070454571,-460.0,0.00019726,2]
[368240778,1751070454594,-613.47,0.00019726,2]
[368240779,1751070454615,-4098.47,0.00019726,2]
[368240780,1751070454637,-460.0,0.00019726,2]
[368240781,1751070454658,-460.0,0.00019726,2]
[368240782,1751070454680,-460.0,0.00019726,2]
[368240783,1751070454702,-460.0,0.00019726,2]
[368240784,1751070454868,-3324.95,0.00019726,2]
[368240785,1751070454892,-460.0,0.00019726,2]
[368240786,1751070454915,-3468.66,0.00019726,2]
[368240787,1751070454936,-460.0,0.00019726,2]
[368240788,1751070454958,-776.16,0.00019726,2]
[368240789,1751070454980,-460.0,0.00019726,2]
[368240790,1751070455007,-460.0,0.00019726,2]
[368240791,1751070455030,-460.0,0.00019726,2]
[368240792,1751070455053,-2083.3,0.00019726,2]
[368240793,1751070455077,-460.0,0.00019726,2]
[368240794,1751070455100,-442.88467164,0.00019726,2]
[368240795,1751070487310,409.660236,0.00013699,2]
[368240853,1751070639049,-778.65565016,0.000189,2]
[368240854,1751070639059,-300.0,0.00019177,2]
[368240855,1751070639069,-1200.0,0.00019177,2]
[368240856,1751070639078,-582.90848372,0.00019177,2]
[368240857,1751070639087,-460.0,0.00019178,2]
[368240858,1751070639097,-460.0,0.00019178,2]
[368240859,1751070639106,-460.0,0.00019178,2]
[368240860,1751070639115,-3467.59,0.00019178,2]
[368240861,1751070639125,-1133.42416212,0.00019178,2]
[368241200,1751070644796,-1901.65583788,0.00019178,2]
[368241202,1751070644805,-460.0,0.00019178,2]
[368241204,1751070644814,-594.3,0.00019178,2]
[368241206,1751070644823,-460.0,0.00019178,2]
[368241208,1751070644832,-2013.1,0.00019178,2]
[368241210,1751070644841,-519.24,0.00019178,2]
[368241212,1751070644850,-460.0,0.00019178,2]
[368241214,1751070644860,-1442.0,0.00019178,2]
[368241216,1751070644869,-460.0,0.00019178,2]
[368241218,1751070644878,-3223.19,0.00019178,2]
[368241220,1751070644888,-460.0,0.00019178,2]
[368241222,1751070644897,-2904.8,0.00019178,2]
[368241224,1751070644906,-460.0,0.00019178,2]
[368241226,1751070644916,-460.0,0.00019178,2]
[368241228,1751070644925,-460.0,0.00019178,2]
[368241248,1751070645112,-460.0,0.00019178,2]
[368241251,1751070645123,-460.0,0.00019178,2]
[368241253,1751070645132,-460.0,0.00019178,2]
[368241255,1751070645141,-3586.16,0.00019178,2]
[368241257,1751070645151,-1131.84,0.00019178,2]
[368241259,1751070645160,-460.0,0.00019178,2]
[368241261,1751070645171,-460.0,0.00019178,2]
[368241263,1751070645180,-747.95,0.00019178,2]
[368241265,1751070645190,-565.72,0.00019178,2]
[368241267,1751070645199,-460.0,0.00019178,2]
[368241269,1751070645209,-460.0,0.00019178,2]
[368241271,1751070645218,-888.9,0.00019178,2]
[368241273,1751070645227,-408.46321594,0.00019178,2]
[368241275,1751070645236,-461.32720177,0.00019178,2]
[368241277,1751070645245,-460.0,0.00019178,2]
[368241279,1751070645254,-460.0,0.00019178,2]
[368241281,1751070645264,-460.0,0.00019178,2]
[368241283,1751070645274,-492.48,0.00019178,2]
[368241285,1751070645284,-1266.76,0.00019178,2]
[368241287,1751070645293,-460.0,0.00019178,2]
[368241289,1751070645302,-1008.89,0.00019178,2]
[368241291,1751070645312,-463.1,0.00019178,2]
[368241293,1751070645321,-460.0,0.00019178,2]
[368241295,1751070645330,-460.0,0.00019178,2]
[368241297,1751070645340,-460.0,0.00019178,2]
[368241299,1751070645349,-460.0,0.00019178,2]
[368241302,1751070645358,-458.59299514,0.00019178,2]
[368241304,1751070645369,-460.0,0.00019178,2]
[368241306,1751070645378,-460.0,0.00019178,2]
[368241308,1751070645389,-1108.13,0.00019178,2]
[368241310,1751070645399,-766.24,0.00019178,2]
[368241312,1751070645409,-460.0,0.00019178,2]
[368241314,1751070645419,-460.0,0.00019178,2]
[368241316,1751070645428,-762.0,0.00019178,2]
[368241318,1751070645438,-460.0,0.00019178,2]
[368241320,1751070645447,-460.68245055,0.00019178,2]
[368241322,1751070645456,-505.92484511,0.00019178,2]
[368241325,1751070645466,-544.75,0.00019178,2]
[368241326,1751070645476,-460.0,0.00019178,2]
[368241328,1751070645488,-460.0,0.00019178,2]
[368241331,1751070645497,-460.0,0.00019178,2]
[368241333,1751070645507,-460.0,0.00019178,2]
[368241335,1751070645516,-577.76,0.00019178,2]
[368241337,1751070645525,-577.08,0.00019178,2]
[368241339,1751070645535,-1822.36,0.00019178,2]
[368241340,1751070645545,-288.09682606,0.00019178,2]
[368241343,1751070645554,-460.0,0.00019178,2]
[368241344,1751070645564,-440.1438782,0.00019178,2]
[368241346,1751070645573,-3533.08,0.00019178,2]
[368241348,1751070645583,-460.0,0.00019178,2]
[368241350,1751070645592,-460.0,0.00019452,2]
[368241352,1751070645602,-460.0,0.00019452,2]
[368241355,1751070645612,-460.0,0.00019452,2]
[368241357,1751070645622,-1875.9717395,0.00019452,2]
[368241370,1751070645740,-1070.16714045,0.00019452,2]
[368241373,1751070645752,-521.45112005,0.00019452,2]
[368241375,1751070645762,-1571.10308185,0.00019452,2]
[368241377,1751070645774,-1463.97691815,0.00019452,2]
[368241379,1751070645783,-460.0,0.00019452,2]
[368241381,1751070645792,-594.3,0.00019452,2]
[368241383,1751070645802,-460.0,0.00019452,2]
[368241385,1751070645812,-2013.1,0.00019452,2]
[368241387,1751070645821,-519.24,0.00019452,2]
[368241389,1751070645830,-460.0,0.00019452,2]
[368241391,1751070645840,-691.66048188,0.00019452,2]
[368241393,1751070645851,-750.33951812,0.00019452,2]
[368241395,1751070645861,-148.15030483,0.00019452,2]
[368241398,1751070645872,-311.84969517,0.00019452,2]
[368241400,1751070645882,-3223.19,0.00019452,2]
[368241402,1751070645891,-460.0,0.00019452,2]
[368241403,1751070645900,-2904.8,0.00019452,2]
[368241404,1751070645910,-460.0,0.00019452,2]
[368241405,1751070645919,-460.0,0.00019452,2]
[368241406,1751070645928,-327.7700529,0.00019452,2]
[368241407,1751070645944,-132.2299471,0.00019452,2]
[368241408,1751070645953,-460.0,0.00019452,2]
[368241409,1751070645962,-3586.16,0.00019452,2]
[368241410,1751070645972,-460.0,0.00019452,2]
[368241411,1751070645981,-1131.84,0.00019452,2]
[368241412,1751070645991,-460.0,0.00019452,2]
[368241413,1751070646000,-747.95,0.00019452,2]
[368241414,1751070646009,-565.72,0.00019452,2]
[368241415,1751070646018,-460.0,0.00019452,2]
[368241416,1751070646027,-460.0,0.00019452,2]
[368241417,1751070646036,-888.9,0.00019452,2]
[368241418,1751070646046,-460.0,0.00019452,2]
[368241419,1751070646055,-460.0,0.00019452,2]
[368241421,1751070646065,-492.48,0.00019452,2]
[368241423,1751070646074,-1266.76,0.00019452,2]
[368241425,1751070646083,-460.0,0.00019452,2]
[368241427,1751070646092,-1008.89,0.00019452,2]
[368241429,1751070646101,-463.1,0.00019452,2]
[368241431,1751070646111,-460.0,0.00019452,2]
[368241433,1751070646119,-460.0,0.00019452,2]
[368241435,1751070646129,-460.0,0.00019452,2]
[368241437,1751070646139,-460.0,0.00019452,2]
[368241439,1751070646148,-460.0,0.00019452,2]
[368241441,1751070646159,-460.0,0.00019452,2]
[368241443,1751070646168,-1108.13,0.00019452,2]
[368241445,1751070646178,-766.24,0.00019452,2]
[368241448,1751070646187,-460.0,0.00019452,2]
[368241449,1751070646197,-762.0,0.00019452,2]
[368241452,1751070646207,-460.0,0.00019452,2]
[368241454,1751070646217,-544.75,0.00019452,2]
[368241455,1751070646226,-460.0,0.00019452,2]
[368241458,1751070646235,-460.0,0.00019452,2]
[368241460,1751070646245,-577.76,0.00019452,2]
[368241462,1751070646255,-577.08,0.00019452,2]
[368241464,1751070646264,-1822.36,0.00019452,2]
[368241466,1751070646274,-460.0,0.00019452,2]
[368241468,1751070646284,-3533.08,0.00019452,2]
[368241469,1751070646293,-460.0,0.00019452,2]
[368241471,1751070646303,-150.85532836,0.00019726,2]
[368241474,1751070646313,-460.0,0.00019726,2]
[368241476,1751070646322,-460.0,0.00019726,2]
[368241478,1751070646331,-460.0,0.00019726,2]
[368241480,1751070646343,-460.0,0.00019726,2]
[368241482,1751070646352,-460.0,0.00019726,2]
[368241484,1751070646362,-463.54,0.00019726,2]
[368241486,1751070646371,-460.0,0.00019726,2]
[368241488,1751070646381,-460.0,0.00019726,2]
[368241490,1751070646390,-460.0,0.00019726,2]
[368241492,1751070646399,-460.0,0.00019726,2]
[368241494,1751070646410,-460.0,0.00019726,2]
[368241496,1751070646419,-460.0,0.00019726,2]
[368241498,1751070646429,-460.0,0.00019726,2]
[368241500,1751070646439,-460.0,0.00019726,2]
[368241502,1751070646448,-460.0,0.00019726,2]
[368241504,1751070646458,-460.0,0.00019726,2]
[368241506,1751070646467,-460.0,0.00019726,2]
[368241507,1751070646476,-460.0,0.00019726,2]
[368241510,1751070646487,-2728.44,0.00019726,2]
[368241511,1751070646497,-467.82,0.00019726,2]
[368241514,1751070646506,-460.0,0.00019726,2]
[368241516,1751070646516,-460.0,0.00019726,2]
[368241518,1751070646525,-460.0,0.00019726,2]
[368241520,1751070646534,-460.0,0.00019726,2]
[368241522,1751070646543,-247.06,0.00019726,2]
[368241524,1751070646554,-460.0,0.00019726,2]
[368241525,1751070646563,-460.0,0.00019726,2]
[368241528,1751070646574,-1305.91,0.00019726,2]
[368241529,1751070646583,-513.5,0.00019726,2]
[368241532,1751070646593,-460.0,0.00019726,2]
[368241533,1751070646602,-460.0,0.00019726,2]
[368241535,1751070646612,-460.0,0.00019726,2]
[368241538,1751070646623,-3467.59,0.00019726,2]
[368241540,1751070646633,-3035.08,0.00019726,2]
[368241542,1751070646643,-460.0,0.00019726,2]
[368241544,1751070646653,-594.3,0.00019726,2]
[368241546,1751070646662,-460.0,0.00019726,2]
[368241548,1751070646671,-2013.1,0.00019726,2]
[368241550,1751070646681,-519.24,0.00019726,2]
[368241552,1751070646690,-460.0,0.00019726,2]
[368241554,1751070646700,-1442.0,0.00019726,2]
[368241556,1751070646709,-460.0,0.00019726,2]
[368241558,1751070646718,-3223.19,0.00019726,2]
[368241560,1751070646728,-460.0,0.00019726,2]
[368241562,1751070646738,-2904.8,0.00019726,2]
[368241564,1751070646747,-460.0,0.00019726,2]
[368241566,1751070646756,-460.0,0.00019726,2]
[368241568,1751070646766,-460.0,0.00019726,2]
[368241570,1751070646775,-3586.16,0.00019726,2]
[368241572,1751070646784,-460.0,0.00019726,2]
[368241574,1751070646795,-1131.84,0.00019726,2]
[368241576,1751070646804,-460.0,0.00019726,2]
[368241578,1751070646813,-747.95,0.00019726,2]
[368241580,1751070646823,-565.72,0.00019726,2]
[368241582,1751070646832,-460.0,0.00019726,2]
[368241584,1751070646841,-460.0,0.00019726,2]
[368241586,1751070646850,-888.9,0.00019726,2]
[368241588,1751070646860,-460.0,0.00019726,2]
[368241590,1751070646869,-492.48,0.00019726,2]
[368241591,1751070646878,-1266.76,0.00019726,2]
[368241593,1751070646888,-460.0,0.00019726,2]
[368241596,1751070646898,-1008.89,0.00019726,2]
[368241598,1751070646908,-463.1,0.00019726,2]
[368241600,1751070646918,-460.0,0.00019726,2]
[368241602,1751070646927,-199.28758949,0.00019726,2]
[368241603,1751070646937,-460.0,0.00019726,2]
[368241606,1751070646946,-460.0,0.00019726,2]
[368241608,1751070646956,-460.0,0.00019726,2]
[368241610,1751070646966,-460.0,0.00019726,2]
[368241612,1751070646975,-1108.13,0.00019726,2]
[368241614,1751070646985,-766.24,0.00019726,2]
[368241616,1751070646995,-460.0,0.00019726,2]
[368241618,1751070647004,-762.0,0.00019726,2]
[368241619,1751070647013,-460.0,0.00019726,2]
[368241621,1751070647023,-544.75,0.00019726,2]
[368241624,1751070647033,-460.0,0.00019726,2]
[368241625,1751070647043,-460.0,0.00019726,2]
[368241628,1751070647053,-577.76,0.00019726,2]
[368241630,1751070647063,-577.08,0.00019726,2]
[368241632,1751070647072,-1822.36,0.00019726,2]
[368241633,1751070647081,-460.0,0.00019726,2]
[368241635,1751070647090,-3533.08,0.00019726,2]
[368241637,1751070647099,-368.85962986,0.00019726,2]
[368241639,1751070647109,-720.0,0.00019828,2]
[368241641,1751070647118,-151.0,0.00019836,2]
[368241644,1751070647127,-479.0,0.00019906,2]
[368241645,1751070647137,-479.0,0.00019916,2]
[368241648,1751070647148,-500.0,0.00019999,2]
[368241650,1751070647158,-500.0,0.00019999,2]
[368241652,1751070647167,-500.0,0.00019999,2]
[368241654,1751070647177,-157.68418546,0.00019999,2]
[368241656,1751070647186,-460.0,0.0002,2]
[368241658,1751070647196,-460.0,0.0002,2]
[368241660,1751070647205,-460.0,0.0002,2]
[368241662,1751070647214,-460.0,0.0002,2]
[368241664,1751070647223,-460.0,0.0002,2]
[368241666,1751070647232,-460.0,0.0002,2]
[368241667,1751070647241,-460.0,0.0002,2]
[368241670,1751070647250,-460.0,0.0002,2]
[368241677,1751070647316,-225.19243511,0.0002,2]
[368241680,1751070647326,-430.0,0.0002,2]
[368241682,1751070647335,-460.0,0.0002,2]
[368241684,1751070647345,-460.0,0.0002,2]
[368241686,1751070647354,-460.0,0.0002,2]
[368241687,1751070647363,-460.0,0.0002,2]
[368241689,1751070647372,-460.0,0.0002,2]
[368241692,1751070647381,-460.0,0.0002,2]
[368241694,1751070647390,-460.0,0.0002,2]
[368241696,1751070647400,-460.0,0.0002,2]
[368241698,1751070647409,-460.0,0.0002,2]
[368241700,1751070647418,-460.0,0.0002,2]
[368241701,1751070647427,-460.0,0.0002,2]
[368241703,1751070647436,-460.0,0.0002,2]
[368241705,1751070647445,-460.0,0.0002,2]
[368241707,1751070647454,-460.0,0.0002,2]
[368241709,1751070647463,-460.0,0.0002,2]
[368241711,1751070647471,-460.0,0.0002,2]
[368241713,1751070647481,-460.0,0.0002,2]
[368241716,1751070647494,-460.0,0.0002,2]
[368241718,1751070647503,-460.0,0.0002,2]
[368241720,1751070647512,-492.89,0.0002,2]
[368241722,1751070647521,-460.0,0.0002,2]
[368241724,1751070647531,-460.0,0.0002,2]
[368241725,1751070647540,-460.0,0.0002,2]
[368241727,1751070647549,-460.0,0.0002,2]
[368241729,1751070647558,-460.0,0.0002,2]
[368241731,1751070647568,-460.0,0.0002,2]
[368241733,1751070647578,-460.0,0.0002,2]
[368241734,1751070647587,-460.0,0.0002,2]
[368241736,1751070647595,-460.0,0.0002,2]
[368241738,1751070647604,-460.0,0.0002,2]
[368241740,1751070647613,-460.0,0.0002,2]
[368241741,1751070647622,-695.22,0.0002,2]
[368241743,1751070647631,-411.44467223,0.0002,2]
[368241745,1751070647640,-511.75,0.0002,2]
[368241746,1751070647649,-460.0,0.0002,2]
[368241748,1751070647659,-460.0,0.0002,2]
[368241750,1751070647667,-460.0,0.0002,2]
[368241751,1751070647676,-460.0,0.0002,2]
[368241753,1751070647685,-460.0,0.0002,2]
[368241755,1751070647694,-460.0,0.0002,2]
[368241757,1751070647705,-460.0,0.0002,2]
[368241758,1751070647713,-460.0,0.0002,2]
[368241760,1751070647723,-460.0,0.0002,2]
[368241762,1751070647732,-460.0,0.0002,2]
[368241764,1751070647741,-460.0,0.0002,2]
[368241765,1751070647750,-460.0,0.0002,2]
[368241767,1751070647759,-460.0,0.0002,2]
[368241769,1751070647769,-491.33099807,0.0002,2]
[368241770,1751070647778,-460.0,0.0002,2]
[368241772,1751070647787,-460.0,0.0002,2]
[368241774,1751070647796,-460.0,0.0002,2]
[368241776,1751070647804,-460.0,0.0002,2]
[368241777,1751070647814,-460.0,0.0002,2]
[368241779,1751070647823,-460.0,0.0002,2]
[368241780,1751070647831,-460.0,0.0002,2]
[368241782,1751070647841,-460.0,0.0002,2]
[368241784,1751070647850,-460.0,0.0002,2]
[368241786,1751070647859,-460.0,0.0002,2]
[368241787,1751070647868,-460.0,0.0002,2]
[368241789,1751070647877,-593.74,0.0002,2]
[368241791,1751070647887,-460.0,0.0002,2]
[368241793,1751070647896,-468.86,0.0002,2]
[368241794,1751070647905,-460.0,0.0002,2]
[368241796,1751070647915,-460.0,0.0002,2]
[368241798,1751070647924,-460.0,0.0002,2]
[368241799,1751070647933,-460.0,0.0002,2]
[368241801,1751070647942,-460.0,0.0002,2]
[368241803,1751070647951,-314.65,0.0002,2]
[368241804,1751070647959,-460.0,0.0002,2]
[368241806,1751070647969,-460.0,0.0002,2]
[368241808,1751070647978,-460.0,0.0002,2]
[368241810,1751070647988,-460.0,0.0002,2]
[368241812,1751070647997,-460.0,0.0002,2]
[368241813,1751070648007,-2728.44,0.0002,2]
[368241815,1751070648016,-460.0,0.0002,2]
[368241817,1751070648025,-460.0,0.0002,2]
[368241819,1751070648034,-460.0,0.0002,2]
[368241821,1751070648044,-460.0,0.0002,2]
[368241822,1751070648053,-460.0,0.0002,2]
[368241824,1751070648062,-460.0,0.0002,2]
[368241826,1751070648071,-1305.91,0.0002,2]
[368241827,1751070648080,-513.5,0.0002,2]
[368241829,1751070648089,-460.0,0.0002,2]
[368241831,1751070648100,-460.0,0.0002,2]
[368241833,1751070648109,-460.0,0.0002,2]
[368241835,1751070648119,-3467.59,0.0002,2]
[368241837,1751070648129,-3035.08,0.0002,2]
[368241838,1751070648139,-460.0,0.0002,2]
[368241840,1751070648148,-594.3,0.0002,2]
[368241842,1751070648158,-460.0,0.0002,2]
[368241844,1751070648168,-2013.1,0.0002,2]
[368241845,1751070648177,-519.24,0.0002,2]
[368241847,1751070648186,-460.0,0.0002,2]
[368241849,1751070648196,-1442.0,0.0002,2]
[368241851,1751070648205,-460.0,0.0002,2]
[368241853,1751070648215,-3223.19,0.0002,2]
[368241854,1751070648224,-460.0,0.0002,2]
[368241856,1751070648234,-2904.8,0.0002,2]
[368241858,1751070648244,-460.0,0.0002,2]
[368241860,1751070648254,-460.0,0.0002,2]
[368241862,1751070648263,-460.0,0.0002,2]
[368241863,1751070648273,-3586.16,0.0002,2]
[368241865,1751070648283,-460.0,0.0002,2]
[368241867,1751070648292,-1131.84,0.0002,2]
[368241869,1751070648303,-460.0,0.0002,2]
[368241870,1751070648313,-747.95,0.0002,2]
[368241872,1751070648322,-460.0,0.0002,2]
[368241874,1751070648333,-565.72,0.0002,2]
[368241875,1751070648342,-460.0,0.0002,2]
[368241877,1751070648353,-888.9,0.0002,2]
[368241879,1751070648363,-460.0,0.0002,2]
[368241881,1751070648373,-492.48,0.0002,2]
[368241883,1751070648383,-1266.76,0.0002,2]
[368241884,1751070648392,-460.0,0.0002,2]
[368241886,1751070648402,-1008.89,0.0002,2]
[368241888,1751070648412,-463.1,0.0002,2]
[368241890,1751070648422,-460.0,0.0002,2]
[368241892,1751070648432,-460.0,0.0002,2]
[368241894,1751070648441,-460.0,0.0002,2]
[368241895,1751070648451,-460.0,0.0002,2]
[368241897,1751070648461,-1108.13,0.0002,2]
[368241899,1751070648472,-766.24,0.0002,2]
[368241901,1751070648482,-460.0,0.0002,2]
[368241903,1751070648495,-762.0,0.0002,2]
[368241904,1751070648505,-460.0,0.0002,2]
[368241906,1751070648514,-544.75,0.0002,2]
[368241908,1751070648524,-460.0,0.0002,2]
[368241910,1751070648534,-460.0,0.0002,2]
[368241912,1751070648545,-577.76,0.0002,2]
[368241913,1751070648554,-577.08,0.0002,2]
[368241915,1751070648564,-1822.36,0.0002,2]
[368241917,1751070648574,-460.0,0.0002,2]
[368241919,1751070648583,-3533.08,0.0002,2]
[368241920,1751070648593,-430.99871146,0.00020024,2]
[368241922,1751070648603,-479.0,0.00020039,2]
[368241924,1751070648613,-337.88084016,0.00020062,2]
[368241926,1751070648623,-320.13522908,0.00020068,2]
[368241928,1751070648633,-160.0,0.00020081,2]
[368241930,1751070648642,-160.0,0.00020081,2]